bitfinex/quotes_ETHUSD_20251012
["timestamp","ask_amount","ask_price","bid_price","bid_amount"]
[1760279098910,0.001,3838.7,3838.2,17.10538513]
[1760279098911,0.001,3838.7,3838.4,2.60523912]
[1760279099100,0.1,3838.7,3838.1,2.60539318]
[1760279099297,0.6336,3838.5,3838.0,0.002]
[1760279099798,0.33387345,3838.4,3838.0,0.002]
[1760279100209,0.43287345,3838.4,3838.0,0.002]
[1760279100508,0.33387345,3838.4,3838.1,2.60541239]
[1760279100813,0.6346,3838.7,3838.1,2.60541239]
[1760279101316,0.001,3838.7,3838.0,0.002]
[1760279101519,0.001,3838.7,3838.2,2.60535665]
[1760279101808,0.001,3838.7,3838.5,2.60517716]
[1760279102010,0.001,3838.7,3838.3,2.60527846]
[1760279102377,0.001,3838.7,3838.6,2.60511644]
[1760279102982,0.001,3838.7,3838.1,0.4691]
[1760279103207,0.001,3838.7,3838.2,2.60538794]
[1760279103407,8.48813,3838.6,3838.0,0.002]
[1760279103604,2.152,3838.6,3838.1,2.60545023]
[1760279103821,4.75713758,3838.6,3838.0,0.002]
[1760279104003,2.70413758,3838.6,3838.0,0.002]
[1760279104188,0.6336,3838.4,3838.0,0.002]
[1760279104383,1.665943,3838.3,3838.0,0.002]
[1760279104580,0.7326,3838.3,3838.0,0.002]
[1760279105413,0.6336,3838.4,3838.0,0.002]
[1760279105585,0.099,3838.2,3838.0,0.002]
[1760279106020,0.6336,3838.4,3838.0,0.002]
[1760279106021,0.099,3838.1,3838.0,0.002]
[1760279106392,3.23887867,3838.4,3838.0,0.002]
[1760279106598,0.099,3838.1,3838.0,0.002]
[1760279106996,9.36624582,3838.1,3838.0,0.002]
[1760279107322,21.98218382,3838.1,3838.0,0.002]
[1760279108124,20.39486882,3838.1,3838.0,0.002]
[1760279108416,10.73964582,3838.1,3838.0,0.002]
[1760279108625,12.14728016,3838.1,3838.0,0.002]
[1760279109009,6.66569016,3838.1,3838.0,0.002]
[1760279109212,12.715007,3838.1,3838.0,0.002]
[1760279109386,15.32046282,3838.1,3838.0,0.002]
[1760279110041,15.72915555,3838.1,3838.0,0.002]
[1760279110239,5.66674855,3838.1,3838.0,0.002]
[1760279110511,21.19329755,3838.1,3838.0,0.002]
[1760279110744,23.64629236,3838.1,3838.0,0.002]
[1760279111117,18.23950236,3838.1,3838.0,0.002]
[1760279111328,16.41432563,3838.1,3838.0,0.002]
[1760279111523,17.04792563,3838.1,3838.0,0.002]
[1760279111725,16.41432563,3838.1,3838.0,0.002]
[1760279111952,17.04792563,3838.1,3838.0,0.002]
[1760279112154,25.55049163,3838.1,3838.0,0.002]
[1760279112447,25.22904263,3838.1,3838.0,0.002]
[1760279112959,21.73799363,3838.1,3838.0,0.002]
[1760279113117,7.71105063,3838.1,3838.0,0.002]
[1760279113456,20.45753482,3838.1,3838.0,0.002]
[1760279114421,25.92353582,3838.1,3838.0,0.002]
[1760279114834,24.58813082,3838.1,3838.0,0.002]
[1760279115151,24.69266266,3838.1,3838.0,0.002]
[1760279115454,29.30115966,3838.1,3838.0,0.002]
[1760279115654,31.89637149,3838.1,3838.0,0.002]
[1760279116447,37.95779949,3838.1,3838.0,0.002]
[1760279118120,37.85326765,3838.1,3838.0,0.002]
[1760279118723,24.61319165,3838.1,3838.0,0.002]
[1760279119446,7.85326765,3838.1,3838.0,0.002]
[1760279119746,37.85326765,3838.1,3838.0,0.002]
[1760279122873,20.25214465,3838.1,3838.0,0.002]
[1760279123081,13.94598165,3838.1,3838.0,0.002]
[1760279123524,32.17593065,3838.1,3838.0,0.002]
[1760279124561,32.17593065,3838.1,3837.2,0.002]
[1760279124562,3.239599,3837.3,3837.2,0.002]
[1760279124856,31.7401539,3837.3,3837.2,0.002]
[1760279125058,31.7401539,3837.3,3836.1,0.002]
[1760279125059,3.24034625,3836.2,3836.1,0.002]
[1760279125258,10.06236225,3836.2,3836.1,0.002]
[1760279125424,5.25844625,3836.2,3836.1,0.002]
[1760279127166,9.01044625,3836.2,3836.1,0.002]
[1760279127540,20.60991637,3836.2,3836.1,0.002]
[1760279127737,19.37189237,3836.2,3836.1,0.002]
[1760279127962,11.57226837,3836.2,3836.1,0.002]
[1760279128493,9.83138037,3836.2,3836.1,0.002]
[1760279128860,2.5536,3836.2,3836.1,0.002]
[1760279129067,1.92,3836.2,3836.1,0.002]
[1760279129998,2.0181,3836.2,3836.1,0.002]
[1760279130493,4.62484625,3836.2,3836.1,0.002]
[1760279131172,2.0181,3836.2,3836.1,0.002]
[1760279132402,0.6336,3836.6,3836.1,0.002]
[1760279132701,1.92,3836.7,3836.1,0.002]
[1760279132904,20.81733125,3836.2,3836.1,0.002]
[1760279133067,5.25844625,3836.2,3836.1,0.002]
[1760279133425,0.2087,3837.4,3836.1,0.002]
[1760279133426,0.0981,3837.0,3836.1,0.002]
[1760279133584,2.5536,3836.7,3836.1,0.002]
[1760279133779,0.2087,3837.4,3836.1,0.002]
[1760279134085,0.3068,3837.4,3836.2,0.4638]
[1760279134287,0.4648,3838.8,3836.8,2.60629254]
[1760279134288,2.60586612,3837.5,3836.8,2.60629254]
[1760279134664,0.3047,3837.7,3836.6,2.60647448]
[1760279134870,2.70546206,3838.1,3837.0,2.60615261]
[1760279135104,2.70546206,3838.1,3837.1,2.60611503]
[1760279135105,1.92,3837.7,3837.1,2.60611503]
[1760279135667,2.60573437,3837.7,3837.0,2.60619354]
[1760279136106,2.70590812,3837.6,3836.6,2.73606419]
[1760279136298,2.70590812,3837.6,3836.4,0.4638]
[1760279136299,0.6336,3837.1,3836.1,0.002]
[1760279136516,3.85225429,3837.0,3836.2,2.60670093]
[1760279136719,2.60621756,3837.0,3836.1,0.002]
[1760279136921,2.60621756,3837.0,3836.2,2.60674566]
[1760279137107,0.1001,3837.5,3836.3,0.4638]
[1760279137424,1.92,3837.3,3836.7,2.60636221]
[1760279137941,0.61542795,3837.9,3836.4,0.1296]
[1760279138118,0.40872795,3837.9,3837.1,0.1296]
[1760279138429,2.60544206,3838.2,3837.4,2.60588249]
[1760279138583,2.60646462,3838.1,3837.4,2.60588249]
[1760279139299,0.57314713,3838.1,3837.1,0.1296]
[1760279139501,0.57314713,3838.1,3836.2,0.4638]
[1760279139502,2.60585248,3837.6,3836.2,0.4638]
[1760279139785,0.6336,3837.4,3836.1,0.002]
[1760279139903,2.60646945,3836.7,3836.1,0.002]
[1760279140303,2.60654242,3836.5,3836.1,0.002]
[1760279140534,2.60674625,3836.2,3836.1,0.002]
[1760279140839,3.24034625,3836.2,3836.1,0.002]
[1760279141037,18.69688025,3836.2,3836.1,0.002]
[1760279141892,35.25934625,3836.2,3836.1,0.002]
[1760279142097,37.85455808,3836.2,3836.1,0.002]
[1760279143917,35.47974908,3836.2,3836.1,0.002]
[1760279144117,11.52437208,3836.2,3836.1,0.002]
[1760279144333,8.92916025,3836.2,3836.1,0.002]
[1760279144638,32.03248509,3835.8,3835.7,1e-08]
[1760279144931,25.53629209,3835.8,3835.7,1e-08]
[1760279145334,25.63639209,3835.8,3835.7,1e-08]
[1760279145836,26.04532151,3835.8,3835.7,1e-08]
[1760279146036,28.64053334,3835.8,3835.7,1e-08]
[1760279146337,22.42022334,3835.8,3835.7,1e-08]
[1760279149561,8.26485934,3835.8,3835.7,1e-08]
[1760279149736,35.66964751,3835.8,3835.7,1e-08]
[1760279150119,21.10439451,3835.8,3835.7,1e-08]
[1760279150368,20.77839551,3835.8,3835.7,1e-08]
[1760279150561,19.78464351,3835.8,3835.7,1e-08]
[1760279151254,0.1001,3836.4,3835.7,1e-08]
[1760279151750,0.2078,3837.4,3835.7,1e-08]
[1760279151751,0.1011,3837.0,3835.7,2.60705333]
[1760279151953,1.92,3836.5,3835.9,2.60692223]
[1760279152454,2.60650167,3836.6,3836.0,2.60687794]
[1760279152650,0.6336,3836.8,3836.0,2.60687794]
[1760279152851,0.6336,3836.6,3836.0,2.60687794]
[1760279153057,2.5536,3836.6,3836.0,2.60687794]
[1760279153357,1.92,3836.6,3835.8,2.60701809]
[1760279153655,0.1011,3837.0,3835.8,0.70756692]
[1760279153822,1.92,3836.8,3835.9,2.60692557]
[1760279154020,2.60686117,3836.1,3835.7,1e-08]
[1760279154262,2.60689833,3836.0,3835.7,1e-08]
[1760279154563,2.60695184,3835.9,3835.7,1e-08]
[1760279155059,0.1011,3836.0,3835.7,1e-08]
[1760279155658,2.70802064,3836.0,3835.7,1e-08]
[1760279155864,0.3053,3835.9,3835.7,1e-08]
[1760279156556,2.91229313,3835.9,3835.7,1e-08]
[1760279156725,2.91229313,3835.9,3834.8,3.04358497]
[1760279156726,0.3074,3835.8,3834.5,0.4359]
[1760279157162,0.3074,3835.8,3835.1,2.60742987]
[1760279157864,0.3074,3835.8,3835.2,2.6074082]
[1760279158361,0.3074,3835.8,3834.5,0.4359]
[1760279158362,2.60717825,3835.6,3834.5,0.4359]
[1760279158557,2.81544895,3835.8,3834.5,0.4359]
[1760279158558,2.60709593,3835.7,3834.5,0.4359]
[1760279158761,2.81542347,3835.8,3835.1,2.60745149]
[1760279158958,2.60702347,3835.8,3835.1,2.60745149]
[1760279159159,2.57090089,3835.9,3835.1,2.60745149]
[1760279159160,2.6070878,3835.7,3835.1,2.60745149]
[1760279159541,2.6070878,3835.7,3834.9,2.60757319]
[1760279159742,2.6070878,3835.7,3835.0,2.60753965]
[1760279160243,2.6070878,3835.7,3834.8,3.04359024]
[1760279160244,0.85820089,3835.9,3834.9,2.60762678]
[1760279160457,2.60717931,3835.6,3834.9,2.60757614]
[1760279160833,0.40886738,3836.0,3835.0,0.4359]
[1760279161049,0.40886738,3836.0,3835.1,2.60744469]
[1760279161261,1.92,3835.8,3835.1,2.60744469]
[1760279161572,2.60755436,3835.1,3834.5,2.60789201]
[1760279161873,2.60755436,3835.1,3834.5,2.60789605]
[1760279162037,0.1001,3835.4,3834.6,2.60778393]
[1760279162243,0.35482331,3835.4,3834.3,0.4359]
[1760279162454,0.35482331,3835.4,3833.6,1.92]
[1760279162455,0.6336,3835.4,3834.8,2.60765578]
[1760279162639,3.24089303,3835.4,3834.7,2.60774108]
[1760279162973,2.70740941,3835.4,3834.4,2.60796511]
[1760279163136,2.70740941,3835.4,3834.0,0.4359]
[1760279163137,2.70744611,3835.4,3834.0,0.4359]
[1760279163339,0.45493461,3835.4,3834.0,0.4359]
[1760279163667,2.6074697,3835.2,3834.4,2.60794527]
[1760279163872,2.60750882,3835.1,3834.4,2.60794527]
[1760279164390,2.60750882,3835.1,3834.5,2.60789713]
[1760279164542,2.60765952,3834.9,3834.0,0.4359]
[1760279164741,2.60765952,3834.9,3834.3,2.60803038]
[1760279164940,2.70767819,3835.0,3834.3,2.60803038]
[1760279165141,0.1001,3835.0,3834.4,2.6079618]
[1760279165341,3.30252782,3835.0,3834.4,2.6079618]
[1760279165646,0.69495917,3835.0,3834.4,2.6079618]
[1760279165862,0.2073,3835.7,3834.5,0.6525]
[1760279166163,4.52726894,3835.5,3834.8,2.60764696]
[1760279166370,1.92,3835.6,3834.8,0.002]
[1760279166571,0.001,3835.8,3835.3,2.60731267]
[1760279166878,0.001,3835.8,3834.9,0.4359]
[1760279166879,0.001,3835.8,3834.9,0.5655]
[1760279167053,0.001,3835.8,3835.2,2.60740027]
[1760279167254,1.921,3835.8,3835.2,2.60740027]
[1760279167557,0.001,3835.8,3835.4,2.60725418]
[1760279168870,0.001,3835.8,3835.3,2.60733089]
[1760279169641,0.001,3835.8,3835.4,2.60727536]
[1760279170889,0.001,3835.8,3834.9,0.1296]
[1760279171058,0.001,3835.8,3835.3,2.6073265]
[1760279171856,0.099,3835.7,3834.9,0.1296]
[1760279172058,0.099,3835.7,3835.3,2.60735632]
[1760279172394,1.921,3835.8,3835.3,2.60735632]
[1760279173095,1.921,3835.8,3835.2,2.60740268]
[1760279173486,1.921,3835.8,3835.3,2.60735381]
[1760279174356,0.001,3835.8,3835.4,0.4359]
[1760279174562,0.001,3835.8,3835.7,2.60708605]
[1760279175602,0.001,3835.8,3835.7,3.04298605]
[1760279176097,0.3063,3835.8,3834.8,0.002]
[1760279176255,1.92,3835.6,3834.8,0.002]
[1760279176591,2.60724425,3835.5,3834.8,2.6096896]
[1760279176787,0.3053,3835.5,3834.8,0.002]
[1760279176985,2.91254741,3835.5,3834.8,2.60969495]
[1760279177193,2.60729826,3835.4,3834.8,2.60969495]
[1760279177603,2.60730992,3835.4,3834.8,0.002]
[1760279178677,2.60762992,3834.9,3834.8,0.002]
[1760279179218,2.91292992,3834.9,3834.8,0.002]
[1760279180022,0.74397816,3835.4,3834.8,0.002]
[1760279180023,0.6336,3835.3,3834.8,0.002]
[1760279180174,0.099,3835.2,3834.8,0.002]
[1760279180483,2.60757183,3835.0,3834.8,0.002]
[1760279180679,2.60762992,3834.9,3834.8,0.002]
[1760279180875,2.70662992,3834.9,3834.8,0.002]
[1760279181076,0.36966299,3834.9,3834.8,0.002]
[1760279181472,2.97729291,3834.9,3834.8,0.002]
[1760279182081,0.36966299,3834.9,3834.8,0.002]
[1760279182290,0.6336,3835.0,3834.8,0.002]
[1760279182477,3.24116391,3835.0,3834.8,0.002]
[1760279183126,2.91476031,3835.3,3834.8,0.002]
[1760279183127,2.1284,3835.3,3834.8,0.002]
[1760279183267,0.099,3834.9,3834.8,0.002]
[1760279183468,2.70662992,3834.9,3834.8,0.002]
[1760279183696,3.30140337,3834.9,3834.8,0.002]
[1760279184771,2.5536,3835.2,3834.8,0.002]
[1760279185090,0.99999999,3838.6,3834.8,0.002]
[1760279185091,0.001,3835.5,3834.8,3.05449032]
[1760279185677,0.001,3835.5,3835.4,2.60728998]
[1760279185884,0.001,3835.5,3834.9,0.4448]
[1760279186177,0.001,3835.5,3835.4,2.60728998]
[1760279186495,0.001,3835.5,3835.3,0.1296]
[1760279186683,0.001,3835.5,3834.8,2.60964582]
[1760279187085,0.001,3835.5,3834.8,0.002]
[1760279187086,2.60730461,3835.4,3834.8,0.002]
[1760279187497,2.60737201,3835.3,3834.8,0.002]
[1760279187911,2.60731412,3835.4,3834.8,0.002]
[1760279188093,2.60731412,3835.4,3834.8,2.60969665]
[1760279188739,2.60824001,3835.5,3834.9,2.60760816]
[1760279189745,0.001,3835.5,3834.8,0.002]
[1760279189931,0.001,3835.5,3834.9,0.1296]
[1760279190235,0.001,3835.5,3835.3,2.60735342]
[1760279190422,0.001,3835.5,3835.3,2.60729098]
[1760279190999,0.001,3835.5,3835.4,2.60728998]
[1760279192338,0.001,3835.5,3835.3,2.60733771]
[1760279194536,0.001,3835.5,3835.4,2.60728998]
[1760279194945,0.001,3835.5,3835.4,3.17324761]
[1760279195138,0.001,3835.5,3835.4,3.74764761]
[1760279195339,0.001,3835.8,3835.7,2.60708605]
[1760279195836,0.001,3836.2,3835.9,2.60689598]
[1760279196037,0.001,3837.6,3836.1,2.83081421]
[1760279196254,0.001,3837.6,3836.3,2.6066783]
[1760279196461,0.001,3837.6,3837.5,2.60586319]
[1760279196962,0.001,3837.6,3837.5,3.05066319]
[1760279197654,0.001,3837.6,3837.5,0.4448]
[1760279197857,0.001,3837.6,3837.1,0.4448]
[1760279198023,9.133858,3837.5,3836.3,0.4448]
[1760279198224,0.9447658,3837.4,3836.5,0.1296]
[1760279198526,2.60680365,3837.6,3836.9,2.6062472]
[1760279199458,2.60586946,3837.5,3836.9,2.6062472]
[1760279199627,0.1082,3837.6,3836.6,0.4448]
[1760279199827,2.60594151,3837.4,3836.7,2.60640091]
[1760279200027,2.60603023,3837.3,3836.6,3.05124362]
[1760279200440,2.60594264,3837.4,3836.7,2.60638541]
[1760279201662,2.60594264,3837.4,3836.5,0.1296]
[1760279201663,0.6336,3837.3,3836.5,0.1296]
[1760279201959,0.6336,3837.3,3835.8,0.4448]
[1760279201960,2.60640431,3836.8,3836.2,0.1296]
[1760279202464,2.60635355,3836.8,3836.2,0.1296]
[1760279202759,2.60641077,3836.7,3836.2,0.1296]
[1760279202952,3.12767916,3836.7,3836.2,0.1296]
[1760279203262,0.6336,3836.5,3834.9,0.4707]
[1760279203462,2.60675782,3836.2,3835.3,0.1296]
[1760279203661,3.23999891,3836.8,3835.5,2.6071593]
[1760279203662,2.60669007,3836.3,3835.5,2.6071593]
[1760279203889,0.6336,3836.7,3835.3,0.6003]
[1760279204094,2.60684463,3836.1,3835.5,2.60721582]
[1760279204268,0.6336,3836.8,3835.8,2.60695776]
[1760279204470,0.6336,3836.8,3835.9,2.60688959]
[1760279204471,2.60642337,3836.7,3835.9,2.60688959]
[1760279204669,1.92,3836.8,3835.7,0.1296]
[1760279204670,1.92,3836.6,3835.7,0.1296]
[1760279204857,1.92,3836.6,3835.5,2.60716522]
[1760279204858,2.6608,3836.6,3835.5,2.60716522]
[1760279205190,2.60677446,3836.2,3835.5,2.60715959]
[1760279205401,3.884607,3836.4,3835.4,0.1296]
[1760279205599,3.884607,3836.4,3834.8,0.002]
[1760279205600,2.60697374,3835.9,3835.2,2.60741974]
[1760279205759,2.60702393,3835.8,3835.1,3.0781694]
[1760279205963,2.60709774,3835.7,3835.0,2.60754247]
[1760279206177,2.60709774,3835.7,3835.0,2.60755994]
[1760279206458,2.60709774,3835.7,3834.9,0.1296]
[1760279206459,0.54192569,3835.7,3834.9,0.1296]
[1760279206662,0.54192569,3835.7,3834.8,0.002]
[1760279206663,2.60721129,3835.6,3834.8,2.6096763]
[1760279206862,0.2052,3835.9,3834.9,3.07832992]
[1760279206863,2.60695882,3835.9,3834.9,3.07832992]
[1760279207175,0.7428,3836.1,3835.0,2.60756192]
[1760279207394,2.60710839,3835.7,3835.0,2.60756192]
[1760279207796,2.60695287,3835.9,3835.2,2.60742513]
[1760279208087,3.20260837,3835.9,3835.2,2.60742513]
[1760279208291,2.5156555,3835.9,3835.4,2.60727975]
[1760279208585,2.5156555,3835.9,3835.2,2.60741559]
[1760279208586,0.1092,3835.8,3835.2,2.60741559]
[1760279209958,0.6336,3836.2,3834.9,0.6003]
[1760279210284,1.92,3835.8,3835.2,2.60735926]
[1760279210483,2.60710253,3835.7,3835.0,2.60754779]
[1760279210682,0.1092,3836.1,3835.2,2.60742394]
[1760279210683,2.60703702,3835.8,3835.2,2.60742394]
[1760279211061,1.92,3835.8,3835.2,2.60742394]
[1760279211262,1.92,3835.8,3834.9,0.1296]
[1760279211263,0.6336,3835.9,3835.3,2.60734549]
[1760279211462,0.33496878,3835.8,3835.2,2.60740324]
[1760279211877,0.6336,3836.1,3835.3,2.60729142]
[1760279212394,2.60688772,3836.0,3835.3,2.60729142]
[1760279212696,2.60688772,3836.0,3835.4,2.60728103]
[1760279213402,2.60688772,3836.0,3835.3,2.60734065]
[1760279214202,2.60688772,3836.0,3835.4,2.60728526]
[1760279214501,3.22296213,3836.0,3835.4,2.60728526]
[1760279215697,0.61607441,3836.0,3835.4,2.60728526]
[1760279216106,0.1101,3837.2,3835.6,2.60715403]
[1760279216394,2.60635465,3836.8,3836.1,2.60676829]
[1760279216600,1.92,3836.7,3836.2,2.60674371]
[1760279216797,0.1101,3836.9,3835.7,0.6004]
[1760279216997,2.5536,3836.8,3836.1,2.60676033]
[1760279217202,5.15999102,3836.8,3836.1,2.60676033]
[1760279218500,2.60641601,3836.7,3836.1,2.60676033]
[1760279218801,2.60641601,3836.7,3836.0,2.60686505]
[1760279219172,2.60641601,3836.7,3836.1,2.60681034]
[1760279219374,0.6336,3836.6,3835.7,0.1296]
[1760279219575,0.6336,3836.4,3835.3,0.4708]
[1760279219792,0.1101,3836.5,3835.6,2.60714002]
[1760279219793,2.6066894,3836.3,3835.6,2.60714002]
[1760279220003,2.60678264,3836.2,3835.1,14.6296]
[1760279220175,2.60678264,3836.2,3835.5,2.60721838]
[1760279220706,2.60678264,3836.2,3835.6,2.60714968]
[1760279221071,2.60668909,3836.3,3835.3,0.002]
[1760279221606,2.60668909,3836.3,3835.6,2.60712087]
[1760279221807,2.60668909,3836.3,3835.7,2.60706836]
[1760279221987,2.71673591,3836.4,3835.7,2.60706836]
[1760279222183,0.001,3836.7,3835.7,0.52142748]
[1760279222407,0.001,3836.7,3835.3,0.002]
[1760279222408,0.001,3836.7,3836.0,2.60687263]
[1760279222714,1.92,3836.6,3836.1,2.60680972]
[1760279223209,0.001,3836.7,3836.3,2.60667765]
[1760279223711,0.001,3836.7,3836.4,2.60659991]
[1760279223916,0.001,3836.7,3836.3,2.60666416]
[1760279224103,0.001,3836.7,3836.4,2.60659633]
[1760279224303,0.001,3836.7,3836.2,2.60672819]
[1760279224810,0.001,3836.7,3836.3,2.60666666]
[1760279225177,0.001,3836.7,3835.7,2.60708605]
[1760279225381,0.001,3836.7,3834.4,2.60993636]
[1760279225382,0.001,3836.7,3836.6,2.60647448]
[1760279225587,0.001,3836.7,3836.6,3.20687448]
[1760279227293,0.001,3836.7,3836.6,0.1296]
[1760279227493,0.1111,3836.7,3835.8,0.1296]
[1760279227699,7.052569,3836.4,3835.1,0.4708]
[1760279227930,2.5536,3836.6,3835.8,2.60701595]
[1760279228137,1.92,3836.6,3835.8,2.60701595]
[1760279228428,1.92,3836.6,3836.0,2.60686298]
[1760279229206,0.001,3836.7,3836.1,0.7066]
[1760279229399,0.001,3836.7,3836.5,2.6064845]
[1760279229921,0.001,3836.7,3836.4,2.6065875]
[1760279230119,0.001,3836.7,3836.5,2.60653975]
[1760279230334,0.001,3836.7,3836.1,0.2358]
[1760279230335,0.001,3836.7,3836.6,2.60647448]
[1760279230535,0.001,3836.7,3836.4,3.07739912]
[1760279230536,0.001,3836.7,3836.5,2.60652948]
[1760279230704,0.001,3836.7,3836.5,3.07732948]
[1760279231208,0.001,3836.7,3836.6,3.07727448]
[1760279231412,0.001,3836.7,3836.6,3.20687448]
[1760279232426,0.001,3836.7,3836.6,5.12687448]
[1760279232801,0.001,3836.7,3836.6,19.62687448]
[1760279233401,0.001,3836.7,3836.6,20.26047448]
[1760279233599,0.001,3837.6,3837.5,2.60586319]
[1760279234120,0.001,3837.6,3837.5,5.12626319]
[1760279234631,0.001,3838.4,3838.0,2.60552371]
[1760279234833,0.001,3838.4,3838.0,4.52552371]
[1760279235136,0.001,3839.1,3838.6,2.60511644]
[1760279235433,0.001,3839.1,3838.6,2.99522808]
[1760279235622,0.001,3839.1,3838.6,3.46602808]
[1760279235947,0.001,3839.1,3838.6,17.96602808]
[1760279237825,0.001,3839.1,3838.6,19.88602808]
[1760279240940,0.001,3839.1,3838.6,17.83642808]
[1760279241153,0.001,3839.1,3838.6,17.57591644]
[1760279244157,0.001,3839.1,3838.6,3.07591644]
[1760279246358,0.001,3839.1,3838.6,2.60511644]
[1760279246858,0.001,3839.1,3838.6,3.04841644]
[1760279247224,0.001,3839.1,3838.4,2.6052016]
[1760279247225,2.60579434,3839.1,3838.4,2.6052016]
[1760279247430,2.60485465,3839.0,3838.4,2.60519504]
[1760279248050,0.001,3839.1,3838.2,14.5]
[1760279248252,0.001,3839.1,3838.6,2.60511644]
[1760279248623,0.001,3839.1,3838.6,3.04841644]
[1760279248841,0.001,3839.1,3838.6,2.60511644]
[1760279249469,0.001,3839.1,3838.6,3.04841644]
[1760279249770,0.001,3839.1,3838.6,2.60511644]
[1760279251058,0.001,3839.1,3838.6,3.56944778]
[1760279251375,0.001,3839.1,3838.6,3.69904778]
[1760279251784,0.001,3839.1,3838.6,3.17801644]
[1760279252144,0.001,3839.1,3838.6,17.67801644]
[1760279258056,0.001,3839.1,3838.6,3.17801644]
[1760279258651,0.001,3839.1,3838.6,17.67801644]
[1760279258979,0.001,3839.1,3838.5,0.002]
[1760279259283,0.001,3839.1,3838.6,3.17801644]
[1760279259584,0.001,3839.1,3838.6,18.25653765]
[1760279266808,0.001,3839.1,3838.6,3.75653765]
[1760279267307,0.001,3839.1,3838.6,18.25653765]
[1760279269174,0.001,3839.1,3838.6,0.5959]
[1760279269379,0.001,3839.1,3838.6,3.20101644]
[1760279269576,0.001,3839.1,3838.6,2.73471644]
[1760279269799,0.001,3839.1,3838.6,3.20101644]
[1760279272619,0.001,3839.1,3838.6,3.07141644]
[1760279272911,0.001,3839.1,3838.6,3.76887772]
[1760279273104,0.001,3839.1,3838.6,18.26887772]
[1760279274305,0.001,3839.1,3838.6,20.18887772]
[1760279291221,0.001,3839.1,3838.6,19.62101644]
[1760279291420,0.001,3839.1,3838.6,3.20101644]
[1760279292043,0.001,3839.1,3838.6,0.1296]
[1760279292243,0.001,3839.1,3838.5,14.502]
[1760279292439,2.60580364,3839.1,3838.5,17.10717707]
[1760279292950,2.70504462,3839.1,3838.5,0.002]
[1760279293137,0.001,3839.1,3838.6,3.07141644]
[1760279294455,0.001,3839.1,3838.6,3.78184273]
[1760279294948,0.001,3839.1,3838.6,18.28184273]
[1760279297223,0.001,3839.1,3838.6,3.20101644]
[1760279297428,0.001,3839.1,3838.6,0.5776]
[1760279297753,0.001,3839.1,3838.5,0.002]
[1760279298052,0.001,3839.1,3838.6,2.60511644]
[1760279299855,0.001,3839.1,3838.6,3.05311644]
[1760279301348,0.001,3839.1,3838.6,17.55311644]
[1760279302773,0.001,3839.1,3838.6,17.68271644]
[1760279304269,0.001,3839.1,3838.6,3.18271644]
[1760279304972,0.001,3839.1,3838.6,17.68271644]
[1760279308240,1e-08,3838.9,3838.8,2.60498072]
[1760279308794,1e-08,3838.9,3838.8,3.18258072]
[1760279309194,1e-08,3838.9,3838.8,3.28701949]
[1760279312110,1e-08,3838.9,3838.8,17.78701949]
[1760279314786,1e-08,3838.9,3838.8,19.70701949]
[1760279315194,0.003,3839.3,3838.8,19.70701949]
[1760279315195,1e-08,3839.3,3839.2,2.60470931]
[1760279315527,1e-08,3839.3,3839.2,4.52470931]
[1760279315725,1e-08,3839.3,3839.2,3.18230931]
[1760279316613,1e-08,3839.3,3839.2,0.5776]
[1760279316819,1e-08,3839.3,3839.2,3.18230931]
[1760279320260,1e-08,3839.3,3839.2,17.68230931]
[1760279323663,1e-08,3839.3,3839.2,17.23430931]
[1760279324384,0.00100001,3839.3,3839.2,2.73430931]
[1760279325960,0.10020001,3839.3,3838.5,0.002]
[1760279326155,0.10020001,3839.3,3838.8,2.6049347]
[1760279326156,0.00100001,3839.3,3838.8,2.6049347]
[1760279326379,0.00100001,3839.3,3838.5,0.1316]
[1760279326380,0.00100001,3839.3,3838.7,2.60502695]
[1760279326581,0.26065841,3839.2,3838.7,2.60502695]
[1760279327293,0.00100001,3839.3,3838.8,2.60493491]
[1760279327494,2.60479582,3839.1,3838.5,0.1316]
[1760279327693,0.0992,3839.2,3838.5,0.1316]
[1760279327694,2.60484615,3839.0,3838.5,0.1316]
[1760279327893,0.0992,3838.9,3838.5,0.002]
[1760279328194,2.60511644,3838.6,3838.5,0.002]
[1760279328391,3.13604616,3838.6,3838.5,0.002]
[1760279328786,3.23524616,3838.6,3838.5,0.002]
[1760279329488,3.86884616,3838.6,3838.5,0.002]
[1760279330687,8.23086416,3838.6,3838.5,0.002]
[1760279331460,13.47793216,3838.6,3838.5,0.002]
[1760279331694,11.49777616,3838.6,3838.5,0.002]
[1760279332580,5.78884616,3838.6,3838.5,0.002]
[1760279332783,19.33192816,3838.6,3838.5,0.002]
[1760279333290,12.00616916,3838.6,3838.5,0.002]
[1760279333465,9.00416916,3838.6,3838.5,0.002]
[1760279333665,13.11035216,3838.6,3838.5,0.002]
[1760279334074,12.46762016,3838.6,3838.5,0.002]
[1760279334297,9.73192116,3838.6,3838.5,0.002]
[1760279334686,12.23060816,3838.6,3838.5,0.002]
[1760279335595,5.78884616,3838.6,3838.5,0.002]
[1760279335770,14.47769216,3838.6,3838.5,0.002]
[1760279336097,12.43301116,3838.6,3838.5,0.002]
[1760279336794,3.18372972,3838.6,3838.5,0.002]
[1760279336995,8.78382844,3838.6,3838.5,0.002]
[1760279337402,7.29057144,3838.6,3838.5,0.002]
[1760279337697,9.63217944,3838.6,3838.5,0.002]
[1760279337897,10.51732644,3838.6,3838.5,0.002]
[1760279338797,1.92,3838.6,3838.5,0.002]
[1760279339006,2.0192,3838.6,3838.5,0.002]
[1760279339370,2.26197802,3838.6,3838.5,0.002]
[1760279340683,2.16277802,3838.6,3838.5,0.002]
[1760279341191,0.24277802,3838.6,3838.5,0.002]
[1760279341393,0.00100001,3839.3,3838.5,0.002]